[Event "Late-Titled-Tuesday-Blitz-March-05-2024"]
[Site "Chess.com"]
[Date "2024.03.05"]
[Round "6"]
[White "dosto07"]
[Black "cristiano78"]
[Result "1-0"]
[WhiteElo "2511"]
[BlackElo "2290"]
[TimeControl "180+1"]
[EndTime "15:04:34 PST"]
[Termination "dosto07 won by resignation"]

1. e4 {[%clk 0:03:00.9]} 1... c5 {[%clk 0:02:40.9]} 2. Nf3 {[%clk 0:03:00.6]}
2... d6 {[%clk 0:02:35.3]} 3. d4 {[%clk 0:03:00.5]} 3... cxd4 {[%clk 0:02:31.6]}
4. Qxd4 {[%clk 0:03:01.4]} 4... Nc6 {[%clk 0:02:31]} 5. Bb5 {[%clk 0:03:01.3]}
5... Qa5+ {[%clk 0:02:29.6]} 6. Nc3 {[%clk 0:03:00.3]} 6... Qxb5 {[%clk
0:02:29.6]} 7. Nxb5 {[%clk 0:02:58.7]} 7... Nxd4 {[%clk 0:02:28.4]} 8. Nfxd4
{[%clk 0:02:59]} 8... Kd8 {[%clk 0:02:26.3]} 9. Be3 {[%clk 0:02:57]} 9... a6
{[%clk 0:02:22.8]} 10. Nc3 {[%clk 0:02:56.5]} 10... Nf6 {[%clk 0:02:19.1]} 11.
f3 {[%clk 0:02:55.8]} 11... g6 {[%clk 0:02:13.7]} 12. O-O-O {[%clk 0:02:53.5]}
12... Bg7 {[%clk 0:02:13.2]} 13. e5 {[%clk 0:02:53.6]} 13... Ne8 {[%clk
0:02:08.5]} 14. Bf4 {[%clk 0:02:39.6]} 14... Bd7 {[%clk 0:01:53.3]} 15. Rhe1
{[%clk 0:02:36.4]} 15... dxe5 {[%clk 0:01:47.9]} 16. Bxe5 {[%clk 0:02:36]} 16...
Bxe5 {[%clk 0:01:47.7]} 17. Rxe5 {[%clk 0:02:36]} 17... Nd6 {[%clk 0:01:48.1]}
18. Nd5 {[%clk 0:02:32.3]} 18... Re8 {[%clk 0:01:33.6]} 19. Rde1 {[%clk
0:02:24.8]} 19... e6 {[%clk 0:01:29.4]} 20. Nf6 {[%clk 0:02:24.8]} 20... Rh8
{[%clk 0:01:12.4]} 21. Nb3 {[%clk 0:02:10.8]} 21... Ke7 {[%clk 0:01:09.8]} 22.
Nxd7 {[%clk 0:02:10.4]} 22... Kxd7 {[%clk 0:01:09]} 23. Rd1 {[%clk 0:02:10.8]}
23... Ke7 {[%clk 0:01:08.3]} 24. Na5 {[%clk 0:02:02.8]} 24... Rhd8 {[%clk
0:01:03.9]} 25. Rc5 {[%clk 0:02:01.5]} 25... Rd7 {[%clk 0:01:02.3]} 26. Nc4
{[%clk 0:01:50]} 26... Nxc4 {[%clk 0:00:50.5]} 27. Rxc4 {[%clk 0:01:50.1]} 27...
Rxd1+ {[%clk 0:00:48.7]} 28. Kxd1 {[%clk 0:01:50.6]} 28... Rd8+ {[%clk
0:00:49.5]} 29. Ke2 {[%clk 0:01:50.9]} 29... b5 {[%clk 0:00:46.5]} 30. Rc6
{[%clk 0:01:50.2]} 30... Rd6 {[%clk 0:00:45.7]} 31. Rc8 {[%clk 0:01:47.8]} 31...
Rd8 {[%clk 0:00:44.7]} 32. Rxd8 {[%clk 0:01:48.1]} 32... Kxd8 {[%clk 0:00:44.6]}
33. Ke3 {[%clk 0:01:48.5]} 33... Kd7 {[%clk 0:00:45.2]} 34. Kd4 {[%clk
0:01:48.6]} 34... Kd6 {[%clk 0:00:45.4]} 35. f4 {[%clk 0:01:48.8]} 35... f6
{[%clk 0:00:45.5]} 36. c4 {[%clk 0:01:48.6]} 36... bxc4 {[%clk 0:00:41.7]} 37.
Kxc4 {[%clk 0:01:48.5]} 37... e5 {[%clk 0:00:42.6]} 38. fxe5+ {[%clk 0:01:48.6]}
38... Kxe5 {[%clk 0:00:41.2]} 39. b4 {[%clk 0:01:48.3]} 39... f5 {[%clk
0:00:40.9]} 40. a4 {[%clk 0:01:48.6]} 40... Kd6 {[%clk 0:00:41.1]} 41. Kd4
{[%clk 0:01:46.6]} 41... g5 {[%clk 0:00:40.6]} 42. b5 {[%clk 0:01:40.5]} 42...
axb5 {[%clk 0:00:39.6]} 43. axb5 {[%clk 0:01:41.4]} 43... h5 {[%clk 0:00:37.6]}
44. g3 {[%clk 0:01:40.9]} 44... Ke6 {[%clk 0:00:20.6]} 45. b6 {[%clk 0:01:39.4]}
45... Kd6 {[%clk 0:00:19.5]} 46. b7 {[%clk 0:01:31.3]} 46... Kc7 {[%clk
0:00:19.6]} 47. Ke5 {[%clk 0:01:32]} 47... f4 {[%clk 0:00:19.4]} 48. gxf4 {[%clk
0:01:29.8]} 48... gxf4 {[%clk 0:00:19.4]} 49. Kxf4 {[%clk 0:01:30]} 49... Kxb7
{[%clk 0:00:20.3]} 50. Kg5 {[%clk 0:01:29.9]} 50... Kc7 {[%clk 0:00:20.8]} 51.
Kxh5 {[%clk 0:01:30.4]} 51... Kd7 {[%clk 0:00:21.3]} 52. Kg6 {[%clk 0:01:30.8]}
52... Ke7 {[%clk 0:00:21.2]} 53. Kg7 {[%clk 0:01:31.2]} 53... Ke6 {[%clk
0:00:21.1]} 54. h4 {[%clk 0:01:31.5]} 54... Kf5 {[%clk 0:00:19.5]} 55. h5 {[%clk
0:01:31.7]} 1-0

[Event "Late-Titled-Tuesday-Blitz-March-05-2024"]
[Site "Chess.com"]
[Date "2024.03.05"]
[Round "6"]
[White "JoakimVonAnd"]
[Black "jcibarra"]
[Result "0-1"]
[WhiteElo "2702"]
[BlackElo "2932"]
[TimeControl "180+1"]
[EndTime "15:04:36 PST"]
[Termination "jcibarra won by resignation"]

1. d4 {[%clk 0:03:00.9]} 1... Nf6 {[%clk 0:02:59.5]} 2. Nf3 {[%clk 0:03:01.2]}
2... g6 {[%clk 0:02:59.3]} 3. c4 {[%clk 0:03:00.3]} 3... d6 {[%clk 0:02:59.4]}
4. g3 {[%clk 0:03:00.2]} 4... Bf5 {[%clk 0:02:59.6]} 5. Nc3 {[%clk 0:02:57.4]}
5... Ne4 {[%clk 0:02:59.5]} 6. Bg2 {[%clk 0:02:47.1]} 6... Nxc3 {[%clk
0:02:59.2]} 7. bxc3 {[%clk 0:02:48]} 7... Be4 {[%clk 0:02:59.7]} 8. O-O {[%clk
0:02:47.9]} 8... Bg7 {[%clk 0:02:59.8]} 9. Nd2 {[%clk 0:02:38.1]} 9... Bxg2
{[%clk 0:02:59.2]} 10. Kxg2 {[%clk 0:02:39]} 10... O-O {[%clk 0:02:59.4]} 11. e4
{[%clk 0:02:38.2]} 11... c5 {[%clk 0:02:59.4]} 12. Nf3 {[%clk 0:02:37.9]} 12...
Nc6 {[%clk 0:02:58.3]} 13. Be3 {[%clk 0:02:36.4]} 13... Rc8 {[%clk 0:02:41.3]}
14. dxc5 {[%clk 0:02:10.4]} 14... dxc5 {[%clk 0:02:40]} 15. Bxc5 {[%clk
0:02:08.8]} 15... Qa5 {[%clk 0:02:26.6]} 16. Bd4 {[%clk 0:02:05.4]} 16... Rfd8
{[%clk 0:02:25.5]} 17. Qb3 {[%clk 0:02:02.5]} 17... Qc7 {[%clk 0:02:12.7]} 18.
Rab1 {[%clk 0:01:45.1]} 18... Na5 {[%clk 0:02:04]} 19. Qb4 {[%clk 0:01:45.1]}
19... b6 {[%clk 0:01:48.9]} 20. e5 {[%clk 0:01:38.9]} 20... Nxc4 {[%clk
0:01:44.6]} 21. Rfe1 {[%clk 0:01:35.1]} 21... Qb7 {[%clk 0:01:36.4]} 22. Re2
{[%clk 0:01:09.4]} 22... Bxe5 {[%clk 0:01:22.1]} 23. Bxe5 {[%clk 0:01:07.5]}
23... Rd3 {[%clk 0:01:21.5]} 24. Kg1 {[%clk 0:00:37.1]} 24... Qxf3 {[%clk
0:01:18.6]} 25. Rbe1 {[%clk 0:00:37.1]} 25... Rd1 {[%clk 0:00:37.8]} 26. Qa4
{[%clk 0:00:13.3]} 26... Qxe2 {[%clk 0:00:20.2]} 27. Qxd1 {[%clk 0:00:13.1]}
27... Qxd1 {[%clk 0:00:20.3]} 28. Rxd1 {[%clk 0:00:14]} 28... Nxe5 {[%clk
0:00:20.9]} 0-1

[Event "Late-Titled-Tuesday-Blitz-March-05-2024"]
[Site "Chess.com"]
[Date "2024.03.05"]
[Round "6"]
[White "Zavgorodniy_Sergiy"]
[Black "masterofpuppets2"]
[Result "1-0"]
[WhiteElo "2626"]
[BlackElo "2487"]
[TimeControl "180+1"]
[EndTime "15:04:38 PST"]
[Termination "Zavgorodniy_Sergiy won by resignation"]

1. d4 {[%clk 0:03:00.9]} 1... d5 {[%clk 0:03:00.1]} 2. c4 {[%clk 0:03:01]} 2...
e6 {[%clk 0:03:00.8]} 3. Nf3 {[%clk 0:03:00.8]} 3... c5 {[%clk 0:03:01.1]} 4.
dxc5 {[%clk 0:03:00.5]} 4... Bxc5 {[%clk 0:03:00.6]} 5. e3 {[%clk 0:03:00.9]}
5... Nf6 {[%clk 0:03:00.7]} 6. a3 {[%clk 0:03:01.2]} 6... O-O {[%clk 0:02:59.7]}
7. b4 {[%clk 0:03:01.5]} 7... Bd6 {[%clk 0:03:00]} 8. Bb2 {[%clk 0:03:02.1]}
8... b6 {[%clk 0:02:57.4]} 9. Nbd2 {[%clk 0:03:02]} 9... Nbd7 {[%clk 0:02:54.1]}
10. Be2 {[%clk 0:03:01.6]} 10... Bb7 {[%clk 0:02:50.6]} 11. O-O {[%clk
0:03:01.3]} 11... Qe7 {[%clk 0:02:49.1]} 12. Qb3 {[%clk 0:02:58.8]} 12... e5
{[%clk 0:02:46.4]} 13. cxd5 {[%clk 0:02:57.8]} 13... Bxd5 {[%clk 0:02:47.3]} 14.
Bc4 {[%clk 0:02:57.9]} 14... Bxc4 {[%clk 0:02:45.1]} 15. Nxc4 {[%clk 0:02:57.5]}
15... Bc7 {[%clk 0:02:42]} 16. a4 {[%clk 0:02:55.1]} 16... Rfd8 {[%clk
0:02:30.8]} 17. h3 {[%clk 0:02:54.2]} 17... h6 {[%clk 0:02:18.6]} 18. Rfd1
{[%clk 0:02:53.4]} 18... e4 {[%clk 0:02:11.4]} 19. Nd4 {[%clk 0:02:52.9]} 19...
Ne5 {[%clk 0:01:52.5]} 20. Nxe5 {[%clk 0:02:39.3]} 20... Qxe5 {[%clk 0:01:53.4]}
21. g3 {[%clk 0:02:37.8]} 21... Qd5 {[%clk 0:01:36.1]} 22. Qxd5 {[%clk
0:02:32.3]} 22... Rxd5 {[%clk 0:01:37]} 23. Rdc1 {[%clk 0:02:30.2]} 23... Be5
{[%clk 0:01:33.6]} 24. Rc6 {[%clk 0:02:28.2]} 24... Rad8 {[%clk 0:01:32]} 25.
Rac1 {[%clk 0:02:26.8]} 25... h5 {[%clk 0:01:20.8]} 26. Kg2 {[%clk 0:02:24.7]}
26... R5d7 {[%clk 0:01:10.9]} 27. b5 {[%clk 0:02:20.7]} 27... h4 {[%clk
0:01:05.1]} 28. g4 {[%clk 0:02:20.2]} 28... Nh7 {[%clk 0:01:05.8]} 29. Rc8
{[%clk 0:02:14.9]} 29... Ng5 {[%clk 0:01:05.9]} 30. Rxd8+ {[%clk 0:02:12.4]}
30... Rxd8 {[%clk 0:01:06.8]} 31. Rc2 {[%clk 0:02:06.5]} 31... Nf3 {[%clk
0:01:06.5]} 32. Nxf3 {[%clk 0:02:02.9]} 32... exf3+ {[%clk 0:01:07]} 33. Kxf3
{[%clk 0:02:03.8]} 33... Bxb2 {[%clk 0:01:06.9]} 34. Rxb2 {[%clk 0:02:04.7]}
34... Rd3 {[%clk 0:01:03.4]} 35. Rc2 {[%clk 0:02:02.2]} 35... Ra3 {[%clk
0:01:00.1]} 36. Rc4 {[%clk 0:02:02.2]} 36... g5 {[%clk 0:00:58]} 37. Ke4 {[%clk
0:02:01.4]} 37... Ra2 {[%clk 0:00:57.6]} 38. Kf3 {[%clk 0:01:52.7]} 38... Kg7
{[%clk 0:00:57.3]} 39. Rd4 {[%clk 0:01:43.5]} 39... Kf6 {[%clk 0:00:57]} 40. Re4
{[%clk 0:01:43.6]} 40... Kg6 {[%clk 0:00:56.5]} 41. Rc4 {[%clk 0:01:40.3]} 41...
f5 {[%clk 0:00:53.5]} 42. Rc6+ {[%clk 0:01:36.5]} 42... Kf7 {[%clk 0:00:53.7]}
43. gxf5 {[%clk 0:01:37.1]} 43... Rxa4 {[%clk 0:00:53.6]} 44. e4 {[%clk
0:01:33.7]} 44... Rb4 {[%clk 0:00:48.5]} 45. e5 {[%clk 0:01:32.7]} 45... Rxb5
{[%clk 0:00:48.6]} 46. Rc7+ {[%clk 0:01:32.9]} 46... Ke8 {[%clk 0:00:49.2]} 47.
Ke4 {[%clk 0:01:32.1]} 47... Rb4+ {[%clk 0:00:43.9]} 48. Kd5 {[%clk 0:01:31.8]}
48... a5 {[%clk 0:00:42.1]} 49. Ke6 {[%clk 0:01:29.6]} 49... Kd8 {[%clk
0:00:41.8]} 50. Ra7 {[%clk 0:01:25.5]} 50... g4 {[%clk 0:00:41.6]} 51. hxg4
{[%clk 0:01:25.1]} 51... Rxg4 {[%clk 0:00:39.5]} 52. f6 {[%clk 0:01:22.8]} 52...
Rf4 {[%clk 0:00:38.9]} 53. f7 {[%clk 0:01:20.4]} 53... a4 {[%clk 0:00:36.4]} 54.
Rxa4 {[%clk 0:01:17.5]} 54... Rxf2 {[%clk 0:00:30.3]} 55. Rxh4 {[%clk
0:01:14.4]} 55... b5 {[%clk 0:00:30.1]} 56. Rh8+ {[%clk 0:01:14.4]} 56... Kc7
{[%clk 0:00:30.1]} 57. f8=Q {[%clk 0:01:15.3]} 57... Rxf8 {[%clk 0:00:29.6]} 58.
Rxf8 {[%clk 0:01:16.2]} 1-0

[Event "Late-Titled-Tuesday-Blitz-March-05-2024"]
[Site "Chess.com"]
[Date "2024.03.05"]
[Round "6"]
[White "ckgchess"]
[Black "Alphafischer2019"]
[Result "1-0"]
[WhiteElo "2920"]
[BlackElo "2728"]
[TimeControl "180+1"]
[EndTime "15:04:40 PST"]
[Termination "ckgchess won by checkmate"]

1. e4 {[%clk 0:03:00.9]} 1... c5 {[%clk 0:02:58.9]} 2. c3 {[%clk 0:03:00.6]}
2... Nf6 {[%clk 0:02:58.5]} 3. e5 {[%clk 0:03:01.1]} 3... Nd5 {[%clk 0:02:59.2]}
4. d4 {[%clk 0:03:02]} 4... cxd4 {[%clk 0:03:00]} 5. Bc4 {[%clk 0:03:02.5]} 5...
Nb6 {[%clk 0:02:59.7]} 6. Bb3 {[%clk 0:03:02.9]} 6... Nc6 {[%clk 0:02:59.4]} 7.
Nf3 {[%clk 0:03:03.2]} 7... d5 {[%clk 0:02:59.6]} 8. exd6 {[%clk 0:03:00.7]}
8... Qxd6 {[%clk 0:03:00]} 9. O-O {[%clk 0:03:00.9]} 9... e6 {[%clk 0:02:52.7]}
10. cxd4 {[%clk 0:02:59.4]} 10... Be7 {[%clk 0:02:53.2]} 11. Nc3 {[%clk
0:03:00.1]} 11... O-O {[%clk 0:02:50.7]} 12. Re1 {[%clk 0:02:48.8]} 12... Rd8
{[%clk 0:02:43.7]} 13. Be3 {[%clk 0:02:45.6]} 13... Nd5 {[%clk 0:02:37.8]} 14.
Ne4 {[%clk 0:02:24.6]} 14... Nxe3 {[%clk 0:02:37]} 15. Rxe3 {[%clk 0:02:04.9]}
15... Qd7 {[%clk 0:02:10.2]} 16. Rd3 {[%clk 0:01:52.5]} 16... b6 {[%clk
0:02:09.7]} 17. Ba4 {[%clk 0:01:12]} 17... Qb7 {[%clk 0:01:40.8]} 18. a3 {[%clk
0:00:54.6]} 18... Bd7 {[%clk 0:01:39.1]} 19. Rc1 {[%clk 0:00:51.6]} 19... Be8
{[%clk 0:01:38]} 20. Nc3 {[%clk 0:00:40.7]} 20... Rac8 {[%clk 0:01:36.7]} 21. d5
{[%clk 0:00:40.8]} 21... exd5 {[%clk 0:01:06.3]} 22. Nxd5 {[%clk 0:00:41.7]}
22... Bf8 {[%clk 0:00:32.7]} 23. Bxc6 {[%clk 0:00:38.7]} 23... Bxc6 {[%clk
0:00:20.2]} 24. Nf6+ {[%clk 0:00:32.8]} 24... gxf6 {[%clk 0:00:20.8]} 25. Rxd8
{[%clk 0:00:33.5]} 25... Rxd8 {[%clk 0:00:21.5]} 26. Qxd8 {[%clk 0:00:33.9]}
26... Bxf3 {[%clk 0:00:22.2]} 27. gxf3 {[%clk 0:00:34.4]} 27... Qxf3 {[%clk
0:00:22.3]} 28. Rc3 {[%clk 0:00:33.6]} 28... Qd5 {[%clk 0:00:06.3]} 29. Rg3+
{[%clk 0:00:33.2]} 29... Kh8 {[%clk 0:00:05.4]} 30. Qxf8# {[%clk 0:00:33]} 1-0

[Event "Late-Titled-Tuesday-Blitz-March-05-2024"]
[Site "Chess.com"]
[Date "2024.03.05"]
[Round "6"]
[White "Zallio"]
[Black "maurovargas01"]
[Result "1-0"]
[WhiteElo "2146"]
[BlackElo "1827"]
[TimeControl "180+1"]
[EndTime "15:04:41 PST"]
[Termination "Zallio won by resignation"]

1. e4 {[%clk 0:02:55.1]} 1... d5 {[%clk 0:02:59.3]} 2. exd5 {[%clk 0:02:54.9]}
2... Qxd5 {[%clk 0:03:00.2]} 3. Nf3 {[%clk 0:02:54.4]} 3... c6 {[%clk
0:02:59.8]} 4. d4 {[%clk 0:02:54.4]} 4... Bg4 {[%clk 0:02:58.8]} 5. Be2 {[%clk
0:02:54.8]} 5... Nf6 {[%clk 0:02:57.7]} 6. c4 {[%clk 0:02:54.1]} 6... Qa5+
{[%clk 0:02:57]} 7. Nc3 {[%clk 0:02:53.6]} 7... e6 {[%clk 0:02:56]} 8. O-O
{[%clk 0:02:53.6]} 8... Nbd7 {[%clk 0:02:49.6]} 9. a3 {[%clk 0:02:54]} 9... Rd8
{[%clk 0:02:42]} 10. Bf4 {[%clk 0:02:52.7]} 10... Nh5 {[%clk 0:02:37.7]} 11. b4
{[%clk 0:02:52.2]} 11... Qa6 {[%clk 0:02:17.9]} 12. c5 {[%clk 0:02:39.6]} 12...
b5 {[%clk 0:02:17.6]} 13. a4 {[%clk 0:02:40]} 13... Nxf4 {[%clk 0:02:04.4]} 14.
axb5 {[%clk 0:02:40.2]} 14... Qb7 {[%clk 0:02:02.2]} 15. bxc6 {[%clk 0:02:31.9]}
15... Qxc6 {[%clk 0:02:00.9]} 16. Ra6 {[%clk 0:02:27.6]} 16... Nxe2+ {[%clk
0:02:00]} 17. Qxe2 {[%clk 0:02:24.9]} 17... Bxf3 {[%clk 0:01:58.2]} 18. gxf3
{[%clk 0:02:22.1]} 18... Qc8 {[%clk 0:01:53.2]} 19. Rxa7 {[%clk 0:02:18.6]}
19... Be7 {[%clk 0:01:49.7]} 20. Qb5 {[%clk 0:01:57.1]} 20... O-O {[%clk
0:01:47.3]} 21. c6 {[%clk 0:01:57.4]} 21... Qb8 {[%clk 0:01:39.3]} 22. Rb7
{[%clk 0:01:53.3]} 22... Qa8 {[%clk 0:01:24.8]} 23. Rxd7 {[%clk 0:01:34.1]}
23... Rxd7 {[%clk 0:01:18.7]} 24. cxd7 {[%clk 0:01:34.1]} 24... Qxf3 {[%clk
0:01:17.6]} 25. Ne2 {[%clk 0:01:26.5]} 25... h6 {[%clk 0:01:10.2]} 26. Ng3
{[%clk 0:01:23.9]} 26... h5 {[%clk 0:01:08]} 27. Nxh5 {[%clk 0:01:18.9]} 27...
Rd8 {[%clk 0:00:54]} 28. Ng3 {[%clk 0:01:06.6]} 28... Qc3 {[%clk 0:00:31]} 29.
d5 {[%clk 0:00:59.7]} 29... exd5 {[%clk 0:00:27.5]} 30. Qxd5 {[%clk 0:00:58.7]}
30... Qxb4 {[%clk 0:00:25.5]} 31. Kh1 {[%clk 0:00:50.7]} 31... Qa5 {[%clk
0:00:19]} 32. Qxa5 {[%clk 0:00:49.9]} 32... Rxd7 {[%clk 0:00:18.5]} 33. Qa8+
{[%clk 0:00:49.1]} 33... Rd8 {[%clk 0:00:18.6]} 34. Qe4 {[%clk 0:00:47.9]} 34...
Bf6 {[%clk 0:00:17.7]} 35. Nh5 {[%clk 0:00:47.5]} 35... Rd4 {[%clk 0:00:16.2]}
36. Nxf6+ {[%clk 0:00:46.9]} 1-0

[Event "Late-Titled-Tuesday-Blitz-March-05-2024"]
[Site "Chess.com"]
[Date "2024.03.05"]
[Round "6"]
[White "protectiago"]
[Black "jactorres"]
[Result "1/2-1/2"]
[WhiteElo "2064"]
[BlackElo "2246"]
[TimeControl "180+1"]
[EndTime "15:04:42 PST"]
[Termination "Game drawn by repetition"]

1. d4 {[%clk 0:02:59.4]} 1... Nf6 {[%clk 0:02:56.7]} 2. c4 {[%clk 0:02:57.8]}
2... e6 {[%clk 0:02:57.1]} 3. g3 {[%clk 0:02:57.5]} 3... Be7 {[%clk 0:02:54.8]}
4. Nf3 {[%clk 0:02:54.6]} 4... b6 {[%clk 0:02:54.4]} 5. Nc3 {[%clk 0:02:41.7]}
5... Bb7 {[%clk 0:02:53.6]} 6. Qc2 {[%clk 0:02:41.7]} 6... d5 {[%clk 0:02:50.6]}
7. Bg2 {[%clk 0:02:38.8]} 7... dxc4 {[%clk 0:02:50.7]} 8. O-O {[%clk 0:02:36.1]}
8... O-O {[%clk 0:02:50.7]} 9. Rd1 {[%clk 0:02:32.9]} 9... Qc8 {[%clk
0:02:33.2]} 10. e4 {[%clk 0:02:21.1]} 10... c5 {[%clk 0:02:31.7]} 11. e5 {[%clk
0:02:18.8]} 11... Nd5 {[%clk 0:02:29.1]} 12. Bg5 {[%clk 0:02:05]} 12... Re8
{[%clk 0:02:15.2]} 13. Bxe7 {[%clk 0:02:03.4]} 13... Rxe7 {[%clk 0:02:15.5]} 14.
Ng5 {[%clk 0:02:00.2]} 14... g6 {[%clk 0:02:04.3]} 15. Nce4 {[%clk 0:01:53.1]}
15... Nc6 {[%clk 0:01:47]} 16. Nf6+ {[%clk 0:01:41.8]} 16... Nxf6 {[%clk
0:01:44.5]} 17. exf6 {[%clk 0:01:41.6]} 17... Nxd4 {[%clk 0:01:36.2]} 18. Rxd4
{[%clk 0:01:30]} 18... cxd4 {[%clk 0:01:22.5]} 19. fxe7 {[%clk 0:01:24.2]} 19...
Bxg2 {[%clk 0:01:16.2]} 20. Kxg2 {[%clk 0:01:23.9]} 20... d3 {[%clk 0:01:16.6]}
21. Qc3 {[%clk 0:01:21.7]} 21... Qb7+ {[%clk 0:01:15.1]} 22. f3 {[%clk
0:01:15.8]} 22... Qxe7 {[%clk 0:01:14.6]} 23. Ne4 {[%clk 0:01:16]} 23... f5
{[%clk 0:01:06.1]} 24. Nf6+ {[%clk 0:00:50.3]} 24... Kf7 {[%clk 0:00:57.4]} 25.
Nxh7 {[%clk 0:00:48.1]} 25... Kg8 {[%clk 0:00:18.7]} 26. Nf6+ {[%clk 0:00:33.3]}
26... Kf7 {[%clk 0:00:17.8]} 27. Nh7 {[%clk 0:00:16.2]} 27... Kg8 {[%clk
0:00:17.7]} 28. Nf6+ {[%clk 0:00:16]} 28... Kf7 {[%clk 0:00:18]} 29. Nh7 {[%clk
0:00:12.6]} 1/2-1/2

[Event "Late-Titled-Tuesday-Blitz-March-05-2024"]
[Site "Chess.com"]
[Date "2024.03.05"]
[Round "6"]
[White "Bekkedahl"]
[Black "KorolDimitriy75"]
[Result "1-0"]
[WhiteElo "2216"]
[BlackElo "2406"]
[TimeControl "180+1"]
[EndTime "15:04:43 PST"]
[Termination "Bekkedahl won on time"]

1. e4 {[%clk 0:03:00.9]} 1... c5 {[%clk 0:03:00.2]} 2. Nf3 {[%clk 0:03:00.1]}
2... d6 {[%clk 0:03:00.5]} 3. Bb5+ {[%clk 0:03:00.6]} 3... Nd7 {[%clk
0:03:00.4]} 4. O-O {[%clk 0:03:00.2]} 4... Nf6 {[%clk 0:03:00.2]} 5. Re1 {[%clk
0:03:00.2]} 5... a6 {[%clk 0:03:00.5]} 6. Bxd7+ {[%clk 0:02:58.9]} 6... Bxd7
{[%clk 0:03:01.4]} 7. c3 {[%clk 0:02:58.7]} 7... g6 {[%clk 0:02:59.3]} 8. d4
{[%clk 0:02:59.3]} 8... cxd4 {[%clk 0:02:58.6]} 9. cxd4 {[%clk 0:02:59.3]} 9...
Bg7 {[%clk 0:02:59.2]} 10. Nc3 {[%clk 0:02:59.6]} 10... O-O {[%clk 0:02:58.8]}
11. Bg5 {[%clk 0:02:58.7]} 11... Bc6 {[%clk 0:01:34.9]} 12. e5 {[%clk
0:02:48.6]} 12... dxe5 {[%clk 0:01:19.7]} 13. dxe5 {[%clk 0:02:47.1]} 13... Ng4
{[%clk 0:01:13.1]} 14. Qxd8 {[%clk 0:02:40.6]} 14... Rfxd8 {[%clk 0:01:14]} 15.
Bxe7 {[%clk 0:02:40.4]} 15... Re8 {[%clk 0:01:14.3]} 16. Bd6 {[%clk 0:02:23.9]}
16... Bxf3 {[%clk 0:01:13.5]} 17. gxf3 {[%clk 0:02:24.8]} 17... Nxe5 {[%clk
0:01:04.1]} 18. Kg2 {[%clk 0:02:16.1]} 18... Nc4 {[%clk 0:00:47.8]} 19. Ne4
{[%clk 0:01:51.7]} 19... f5 {[%clk 0:00:33.7]} 20. Rac1 {[%clk 0:01:47.9]} 20...
Nxb2 {[%clk 0:00:19.1]} 21. Nc5 {[%clk 0:01:39.8]} 21... b6 {[%clk 0:00:13.4]}
22. Rxe8+ {[%clk 0:01:12.8]} 22... Rxe8 {[%clk 0:00:14.3]} 23. Nxa6 {[%clk
0:01:11.1]} 23... Ra8 {[%clk 0:00:11.7]} 24. Nb4 {[%clk 0:01:09.9]} 24... Na4
{[%clk 0:00:08.5]} 25. Rc7 {[%clk 0:01:07.5]} 25... Bf6 {[%clk 0:00:04.7]} 26.
Nd5 {[%clk 0:01:05.5]} 26... Bg5 {[%clk 0:00:04.6]} 27. Be5 {[%clk 0:01:03.3]}
27... Re8 {[%clk 0:00:03.2]} 28. f4 {[%clk 0:00:43]} 28... Bd8 {[%clk
0:00:02.1]} 29. Rg7+ {[%clk 0:00:42]} 29... Kf8 {[%clk 0:00:01.8]} 30. Rxh7
{[%clk 0:00:41.5]} 30... Nc5 {[%clk 0:00:01.2]} 31. Rg7 {[%clk 0:00:32.8]} 1-0

[Event "Late-Titled-Tuesday-Blitz-March-05-2024"]
[Site "Chess.com"]
[Date "2024.03.05"]
[Round "6"]
[White "Practical-Play"]
[Black "Zhigalko_Sergei"]
[Result "1-0"]
[WhiteElo "2588"]
[BlackElo "2859"]
[TimeControl "180+1"]
[EndTime "15:04:46 PST"]
[Termination "Practical-Play won on time"]

1. e4 {[%clk 0:03:00.9]} 1... c5 {[%clk 0:02:58.2]} 2. c3 {[%clk 0:02:58.3]}
2... Nf6 {[%clk 0:02:57.7]} 3. e5 {[%clk 0:02:58.5]} 3... Nd5 {[%clk 0:02:53.3]}
4. d4 {[%clk 0:02:58.7]} 4... cxd4 {[%clk 0:02:52.4]} 5. Nf3 {[%clk 0:02:59.3]}
5... d6 {[%clk 0:02:52.3]} 6. Bc4 {[%clk 0:02:59.4]} 6... Nb6 {[%clk 0:02:47.7]}
7. Bb3 {[%clk 0:02:59.6]} 7... Nc6 {[%clk 0:02:36.5]} 8. exd6 {[%clk 0:02:58.7]}
8... Qxd6 {[%clk 0:02:34.8]} 9. O-O {[%clk 0:02:59.1]} 9... Be6 {[%clk
0:02:31.2]} 10. Na3 {[%clk 0:02:58.8]} 10... Bxb3 {[%clk 0:02:23.3]} 11. Qxb3
{[%clk 0:02:58.6]} 11... dxc3 {[%clk 0:02:11.8]} 12. Nb5 {[%clk 0:02:52.9]}
12... Qb8 {[%clk 0:02:11.3]} 13. g3 {[%clk 0:02:29.3]} 13... cxb2 {[%clk
0:01:00.5]} 14. Qxb2 {[%clk 0:02:18.4]} 14... e5 {[%clk 0:00:57.2]} 15. Re1
{[%clk 0:01:49.4]} 15... Be7 {[%clk 0:00:51.4]} 16. Nxe5 {[%clk 0:01:43.4]}
16... Nxe5 {[%clk 0:00:30.6]} 17. Rxe5 {[%clk 0:01:38.7]} 17... f6 {[%clk
0:00:14.4]} 18. Re6 {[%clk 0:01:16.8]} 18... Kf8 {[%clk 0:00:11.7]} 19. Bf4
{[%clk 0:01:06.4]} 19... Qd8 {[%clk 0:00:11.8]} 20. Rae1 {[%clk 0:00:38.4]}
20... Bc5 {[%clk 0:00:12]} 21. Rc1 {[%clk 0:00:35.9]} 21... Qd7 {[%clk
0:00:04.5]} 22. Rxf6+ {[%clk 0:00:31.7]} 22... gxf6 {[%clk 0:00:03.4]} 23. Qxf6+
{[%clk 0:00:32.6]} 23... Kg8 {[%clk 0:00:03.9]} 24. Rxc5 {[%clk 0:00:31.9]}
24... h6 {[%clk 0:00:03.4]} 25. Rc7 {[%clk 0:00:28.3]} 25... Nd5 {[%clk
0:00:03.2]} 26. Qg6+ {[%clk 0:00:27.2]} 26... Kf8 {[%clk 0:00:03.5]} 27. Rxd7
{[%clk 0:00:27.4]} 1-0